bitfinex/quotes_BTCUSD_20220213
["timestamp","ask_amount","ask_price","bid_price","bid_amount"]
[1644771985250,0.159261,42219.0,42216.0,0.00024277]
[1644771985449,0.159261,42219.0,42216.0,0.0001]
[1644771985450,0.0473,42218.0,42216.0,0.0001]
[1644771985651,0.0473,42218.0,42216.0,0.00024277]
[1644771985850,0.0473,42218.0,42216.0,0.0001]
[1644771986253,1.0,42216.0,42209.0,0.0511]
[1644771986453,1.0,42216.0,42209.0,0.0011]
[1644771986454,1.165831,42215.0,42209.0,0.0011]
[1644771986651,1.165831,42215.0,42211.0,0.01124278]
[1644771986652,0.165831,42215.0,42211.0,0.01124278]
[1644771986853,0.315831,42215.0,42211.0,0.01124278]
[1644771987355,0.315831,42215.0,42211.0,0.00948278]
[1644771987356,0.177807,42214.0,42211.0,0.00948278]
[1644771987555,0.0473,42213.0,42211.0,0.00948278]
[1644771987753,0.0473,42213.0,42211.0,0.00934]
[1644771988354,0.05926,42212.0,42211.0,0.00934]
[1644771988556,0.10656,42212.0,42211.0,0.00934]
[1644771991201,0.20656,42212.0,42211.0,0.00934]
[1644771992101,0.20705982,42212.0,42211.0,0.00934]
[1644771993147,0.20705982,42212.0,42203.0,0.2913689]
[1644771993148,0.6,42211.0,42203.0,0.2913689]
[1644771993348,0.059264,42208.0,42191.0,0.0111]
[1644771993551,0.059264,42208.0,42198.0,0.0021]
[1644771993748,0.059264,42208.0,42198.0,0.22437645]
[1644771993948,0.109264,42208.0,42198.0,0.22437645]
[1644771994247,1.71954092,42204.0,42198.0,0.22437645]
[1644771994451,1.71758092,42204.0,42203.0,0.19467731]
[1644771994648,1.71758092,42204.0,42203.0,0.27079298]
[1644771994855,0.059267,42207.0,42203.0,0.27079298]
[1644771995051,0.11853,42208.0,42203.0,0.27079298]
[1644771995452,0.059257,42206.0,42203.0,0.27079298]
[1644771996050,0.059257,42206.0,42205.0,0.20289472]
[1644771996405,0.11902082,42212.0,42206.0,0.332674]
[1644771996406,0.00049982,42212.0,42206.0,0.332674]
[1644771996604,0.00049982,42212.0,42208.0,0.53321585]
[1644771997004,0.00021563,42210.0,42208.0,0.53321585]
[1644771998005,0.00021563,42210.0,42208.0,0.58321585]
[1644771998404,0.00021563,42210.0,42208.0,0.53261585]
[1644771999006,0.00021563,42210.0,42208.0,0.58261585]
[1644772000253,0.00021563,42210.0,42208.0,0.53261585]
[1644772001852,0.00042389,42210.0,42208.0,0.53261585]
[1644772003903,0.0473,42209.0,42208.0,0.53261585]
[1644772004299,0.0973,42209.0,42208.0,0.53261585]
[1644772004701,0.00021777,42212.0,42211.0,0.06288562]
[1644772004702,0.19901426,42212.0,42211.0,0.06288562]
[1644772004900,0.05948977,42212.0,42211.0,0.06288562]
[1644772005900,0.35756782,42212.0,42211.0,0.06288562]
[1644772006100,0.59462782,42212.0,42211.0,0.06288562]
[1644772006299,0.49654977,42212.0,42211.0,0.06288562]
[1644772006501,0.65784131,42212.0,42211.0,0.06288562]
[1644772006903,0.94132107,42212.0,42211.0,0.06288562]
[1644772007847,0.98862107,42212.0,42211.0,0.06288562]
[1644772009247,0.70492354,42212.0,42211.0,0.06288562]
[1644772009449,0.58639354,42212.0,42211.0,0.06288562]
[1644772009647,0.425102,42212.0,42211.0,0.06288562]
[1644772010549,0.87112204,42212.0,42211.0,0.06288562]
[1644772011151,0.58639354,42212.0,42211.0,0.06288562]
[1644772011602,0.38639354,42212.0,42211.0,0.06288562]
[1644772011804,0.26857724,42212.0,42211.0,0.06288562]
[1644772012202,0.1072857,42212.0,42211.0,0.06288562]
[1644772012400,0.26857724,42212.0,42211.0,0.06288562]
[1644772012605,0.1072857,42212.0,42211.0,0.26924161]
[1644772013202,0.1072857,42212.0,42211.0,0.26916161]
[1644772013803,0.1069357,42212.0,42211.0,0.26916161]
[1644772014610,0.12197076,42212.0,42211.0,0.26916161]
[1644772014807,0.06269876,42212.0,42211.0,0.26916161]
[1644772015468,0.06269876,42212.0,42211.0,0.46830641]
[1644772015671,0.06269876,42212.0,42211.0,0.26916161]
[1644772016369,0.12194576,42212.0,42211.0,0.26916161]
[1644772016570,0.12194576,42212.0,42211.0,0.26120161]
[1644772017073,0.06269876,42212.0,42211.0,0.26120161]
[1644772017472,0.06302622,42212.0,42211.0,0.26120161]
[1644772019611,0.06302622,42212.0,42211.0,0.26105161]
[1644772019813,0.06302622,42212.0,42211.0,0.05469562]
[1644772020412,0.05675154,42212.0,42211.0,0.05469562]
[1644772020810,0.05675154,42212.0,42211.0,0.1287214]
[1644772021412,0.05675154,42212.0,42211.0,0.05469562]
[1644772022213,0.05717171,42212.0,42211.0,0.05469562]
[1644772026598,0.05717171,42212.0,42211.0,0.05442562]
[1644772027498,0.05710039,42212.0,42211.0,0.05442562]
[1644772029196,0.05710039,42212.0,42211.0,0.04942562]
[1644772029800,0.00034885,42212.0,42211.0,0.04942562]
[1644772030447,0.05710039,42212.0,42211.0,0.04942562]
[1644772034908,0.1900613,42214.0,42213.0,0.23269277]
[1644772036009,0.18993013,42214.0,42213.0,0.23269277]
[1644772039454,0.23993013,42214.0,42213.0,0.23269277]
[1644772039649,0.28723013,42214.0,42213.0,0.23269277]
[1644772040550,0.33723013,42214.0,42213.0,0.23269277]
[1644772040749,0.23723013,42214.0,42213.0,0.23269277]
[1644772041147,0.73723013,42214.0,42213.0,0.23269277]
[1644772041619,1.19358209,42214.0,42213.0,0.23269277]
[1644772042024,1.19393079,42214.0,42213.0,0.23269277]
[1644772043624,0.89887037,42214.0,42213.0,0.23269277]
[1644772046647,1.1828395,42214.0,42213.0,0.23269277]
[1644772048912,0.89887037,42214.0,42213.0,0.23269277]
[1644772049109,0.89887037,42214.0,42213.0,0.22769277]
[1644772049510,1.17970249,42214.0,42213.0,0.22769277]
[1644772050110,0.89887037,42214.0,42213.0,0.22769277]
[1644772050511,1.18147392,42214.0,42213.0,0.22769277]
[1644772050711,0.89887037,42214.0,42213.0,0.22769277]
[1644772053550,0.94887037,42214.0,42213.0,0.22769277]
[1644772056154,0.89887037,42214.0,42213.0,0.22769277]
[1644772056804,0.85157037,42214.0,42213.0,0.22769277]
[1644772057006,0.69027883,42214.0,42213.0,0.22769277]
[1644772057205,0.6901792,42214.0,42213.0,0.22769277]
[1644772058307,0.1901792,42214.0,42213.0,0.22769277]
[1644772061151,0.3086792,42216.0,42214.0,0.8]
[1644772061360,0.00035255,42216.0,42215.0,0.332674]
[1644772061554,0.00035255,42216.0,42215.0,0.5250958]
[1644772062352,0.05924,42219.0,42215.0,0.5250958]
[1644772062551,0.05924,42219.0,42216.0,0.23580559]
[1644772062753,0.00011987,42218.0,42217.0,0.332674]
[1644772062961,0.58547415,42232.0,42217.0,0.332674]
[1644772062962,0.21507415,42232.0,42218.0,1.2]
[1644772063156,0.3639,42237.0,42225.0,0.05]
[1644772063758,0.3639,42237.0,42233.0,0.20784488]
[1644772064008,0.05922,42240.0,42234.0,0.07272398]
[1644772064408,0.059219,42238.0,42234.0,0.07272398]
[1644772064610,0.08,42237.0,42234.0,0.07272398]
[1644772065208,0.08,42237.0,42235.0,0.26440397]
[1644772065713,0.08,42237.0,42234.0,0.07272398]
[1644772066209,0.08,42237.0,42233.0,0.20784488]
[1644772066410,0.08,42235.0,42233.0,0.20784488]
[1644772066610,0.08,42235.0,42231.0,0.25493521]
[1644772067009,0.08,42235.0,42232.0,0.2655902]
[1644772067510,0.08035718,42235.0,42232.0,0.2655902]
[1644772067749,0.08035718,42235.0,42232.0,0.50305598]
[1644772068353,0.08,42235.0,42232.0,0.50305598]
[1644772069551,0.08,42233.0,42232.0,0.50305598]
[1644772070354,0.08,42233.0,42232.0,0.50238571]
[1644772070956,0.08,42233.0,42232.0,0.23714689]
[1644772071804,0.08,42233.0,42232.0,0.50684344]
[1644772072004,0.08,42233.0,42232.0,0.53714689]
[1644772072206,0.08,42233.0,42232.0,0.86982089]
[1644772072405,0.08,42233.0,42232.0,0.53714689]
[1644772072808,0.00055621,42235.0,42234.0,0.16040228]
[1644772073006,0.00055621,42235.0,42234.0,0.79307628]
[1644772073206,0.00020375,42235.0,42234.0,0.16040228]
[1644772073405,0.00020375,42235.0,42234.0,0.26040228]
[1644772073610,0.00020375,42235.0,42234.0,0.16040228]
[1644772074407,0.00020375,42235.0,42234.0,0.7966805]
[1644772074607,0.00020375,42235.0,42234.0,0.4640065]
[1644772074806,0.00020375,42235.0,42234.0,0.5640065]
[1644772075008,0.00020375,42235.0,42234.0,0.8966805]
[1644772075250,0.00020375,42235.0,42234.0,0.5640065]
[1644772076254,0.00020375,42235.0,42234.0,0.5540065]
[1644772076852,0.00020375,42235.0,42234.0,0.8866805]
[1644772077051,0.00020375,42235.0,42234.0,0.9339805]
[1644772077253,0.00019006,42235.0,42234.0,0.9339805]
[1644772077651,0.00019006,42235.0,42234.0,0.6013065]
[1644772078551,0.00019006,42235.0,42234.0,0.6605055]
[1644772079207,0.00019006,42235.0,42234.0,0.19770228]
[1644772079410,0.00019006,42235.0,42234.0,0.15040228]
[1644772079611,0.04749006,42235.0,42234.0,0.15040228]
[1644772080206,0.25419352,42235.0,42234.0,0.15040228]
[1644772080408,0.25419352,42235.0,42234.0,0.13537969]
[1644772081007,0.25419352,42235.0,42234.0,0.04713648]
[1644772081207,0.45399352,42235.0,42234.0,0.04713648]
[1644772081407,0.55399352,42235.0,42234.0,0.04713648]
[1644772081613,0.059237,42231.0,42208.0,0.384]
[1644772081809,0.4306091,42230.0,42211.0,0.1708]
[1644772082009,0.5306091,42230.0,42211.0,0.1708]
[1644772082208,0.5713711,42230.0,42211.0,0.1708]
[1644772082660,0.20114938,42220.0,42215.0,0.25010371]
[1644772082855,0.059246,42219.0,42209.0,0.26568693]
[1644772083458,0.059246,42221.0,42209.0,0.26568693]
[1644772083656,0.059246,42221.0,42209.0,0.36568693]
[1644772083860,0.059246,42221.0,42213.0,0.41898363]
[1644772084058,0.0473,42223.0,42213.0,0.41898363]
[1644772084362,0.00035314,42220.0,42213.0,0.41898363]
[1644772084759,0.20470943,42218.0,42213.0,0.22769277]
[1644772085159,0.059238,42222.0,42216.0,0.08461854]
[1644772085558,0.00035314,42220.0,42216.0,0.08461854]
[1644772086404,0.0473,42223.0,42216.0,0.08461854]
[1644772086603,0.00035314,42220.0,42216.0,0.08461854]
[1644772087009,0.00040295,42218.0,42216.0,0.08461854]
[1644772089406,0.05964595,42218.0,42216.0,0.08461854]
[1644772089805,0.00040295,42218.0,42216.0,0.08461854]
[1644772090652,0.05964595,42218.0,42216.0,0.08461854]
[1644772091652,0.05964595,42218.0,42217.0,0.00018383]
[1644772093906,0.39979998,42218.0,42217.0,0.00018383]
[1644772096906,0.39979998,42218.0,42213.0,0.22769277]
[1644772097107,0.237019,42217.0,42213.0,0.22769277]
[1644772097307,0.106553,42216.0,42213.0,0.22769277]
[1644772097752,0.0473,42216.0,42213.0,0.22769277]
[1644772098354,0.106546,42216.0,42213.0,0.22769277]
[1644772098551,0.0473,42216.0,42213.0,0.22769277]
[1644772099352,9.106546,42216.0,42213.0,0.22769277]
[1644772102103,0.00017218,42215.0,42214.0,0.0002109]
[1644772102902,8.50986588,42216.0,42214.0,0.0002109]
[1644772104103,8.56911188,42216.0,42214.0,0.0002109]
[1644772107250,0.00015643,42215.0,42214.0,0.0002109]
[1644772110605,0.00015643,42215.0,42214.0,0.3328849]
[1644772111303,0.00015643,42215.0,42214.0,0.0002109]
[1644772111606,0.00015643,42215.0,42214.0,0.3328849]
[1644772111802,0.00015643,42215.0,42214.0,0.432674]
[1644772111803,0.00029612,42215.0,42214.0,0.432674]
[1644772112404,0.00029612,42215.0,42214.0,0.68438449]
[1644772112862,0.00029612,42215.0,42214.0,0.58438449]
[1644772113358,0.00029612,42215.0,42214.0,0.73438449]
[1644772113559,0.00029612,42215.0,42214.0,0.68438449]
[1644772113758,8.50962447,42216.0,42214.0,0.58438449]
[1644772114859,8.50962447,42216.0,42214.0,0.70284449]
[1644772115060,8.50962447,42216.0,42215.0,0.332674]
[1644772115258,8.50962447,42216.0,42215.0,0.432674]
[1644772116509,8.50962447,42216.0,42215.0,0.332674]
[1644772117909,8.50962447,42216.0,42213.0,0.33422877]
[1644772117910,8.50962447,42216.0,42213.0,0.27499277]
[1644772118113,8.50962447,42216.0,42213.0,0.22769277]
[1644772118710,0.28360667,42215.0,42213.0,0.22769277]
[1644772118911,0.29806642,42214.0,42213.0,0.22769277]
[1644772119508,0.059255,42215.0,42213.0,0.22769277]
[1644772119908,0.059261,42214.0,42213.0,0.22769277]
[1644772121756,0.34370074,42214.0,42213.0,0.22769277]
[1644772122957,0.059261,42214.0,42213.0,0.22769277]
[1644772123562,0.34150237,42214.0,42213.0,0.22769277]
[1644772124705,0.57484558,42214.0,42213.0,0.22769277]
[1644772125305,0.57484558,42214.0,42213.0,0.1054833]
[1644772125906,0.67484558,42214.0,42213.0,0.1054833]
[1644772126307,0.8361602,42214.0,42213.0,0.1054833]
[1644772126707,0.8861602,42214.0,42213.0,0.1054833]
[1644772126907,0.88645553,42214.0,42213.0,0.10577668]
[1644772127108,0.65311232,42214.0,42213.0,0.10577668]
[1644772127310,0.60311232,42214.0,42213.0,0.10577668]
[1644772127509,0.15955633,42214.0,42213.0,0.10577668]
[1644772127954,0.05955633,42214.0,42213.0,0.10577668]
[1644772128355,0.00029533,42214.0,42213.0,0.10577668]
[1644772132106,0.00029533,42214.0,42213.0,0.10578108]
[1644772132506,0.20061579,42214.0,42213.0,0.10578108]
[1644772133506,0.00029533,42214.0,42213.0,0.10578108]
[1644772135779,0.03229533,42214.0,42213.0,0.10578108]
[1644772136584,0.31121391,42214.0,42213.0,0.10578108]
[1644772137281,0.03229533,42214.0,42213.0,0.10578108]
[1644772137980,0.31392011,42214.0,42213.0,0.10578108]
[1644772138380,0.13229533,42214.0,42213.0,0.10578108]
[1644772139408,0.03229533,42214.0,42213.0,0.10578108]
[1644772144256,1.059251,42213.0,42208.0,0.00035152]
[1644772144463,0.059258,42212.0,42208.0,0.00035152]
[1644772144658,0.0473,42211.0,42208.0,0.00035152]
[1644772145259,0.106559,42211.0,42207.0,0.07967519]
[1644772146510,0.106559,42211.0,42209.0,0.25444158]
[1644772146812,0.0473,42211.0,42209.0,0.25444158]
[1644772147015,0.06613,42213.0,42209.0,0.25444158]
[1644772148210,0.059248,42212.0,42208.0,0.00037583]
[1644772148813,0.059248,42212.0,42207.0,0.07967519]
[1644772149012,0.059248,42212.0,42208.0,0.00037583]
[1644772150164,0.06613,42213.0,42207.0,0.07981682]
[1644772150358,0.06613,42213.0,42208.0,0.20589301]
[1644772151359,0.125377,42213.0,42208.0,0.20551718]
[1644772151559,0.125377,42213.0,42208.0,0.20589301]
[1644772151758,0.00017361,42211.0,42208.0,0.20589301]
[1644772151960,0.125377,42213.0,42212.0,0.00103797]
[1644772153164,0.06613,42213.0,42212.0,0.33371197]
[1644772155219,0.16134596,42215.0,42212.0,0.33371197]
[1644772156117,0.16134596,42215.0,42213.0,0.20335323]
[1644772156416,0.16134596,42215.0,42214.0,0.332674]
[1644772158459,8.50962447,42216.0,42214.0,0.332674]
[1644772158659,8.50962447,42216.0,42213.0,0.20335323]
[1644772158860,8.50962447,42216.0,42214.0,0.332674]
[1644772159159,8.50962447,42216.0,42215.0,0.332674]
[1644772159359,8.50962447,42216.0,42213.0,0.20335323]
[1644772159560,8.50962447,42216.0,42214.0,0.332674]
[1644772159760,8.50962447,42216.0,42212.0,0.00103797]
[1644772159963,8.50962447,42216.0,42213.0,0.332674]
[1644772160161,8.50962447,42216.0,42212.0,0.00103797]
[1644772160362,0.27876493,42215.0,42212.0,0.00103797]
[1644772160860,0.5458717,42215.0,42212.0,0.00103797]
[1644772161264,0.6551337,42215.0,42212.0,0.00103797]
[1644772161516,0.86074151,42215.0,42212.0,0.00103797]
[1644772162119,0.059259,42214.0,42212.0,0.00103797]
[1644772162317,0.29071511,42213.0,42212.0,0.00103797]
[1644772162520,0.34071511,42213.0,42212.0,0.00103797]
[1644772163918,0.38801511,42213.0,42212.0,0.00103797]
[1644772164119,0.33801511,42213.0,42212.0,0.00103797]
[1644772165359,0.38801511,42213.0,42212.0,0.00103797]
[1644772167259,0.38841286,42213.0,42212.0,0.00103797]
[1644772167665,0.48841286,42213.0,42212.0,0.00103797]
[1644772168261,0.09769775,42213.0,42212.0,0.00103797]
[1644772168461,0.05039775,42213.0,42212.0,0.00103797]
[1644772168662,0.00039775,42213.0,42212.0,0.00103797]
[1644772171207,0.0001453,42213.0,42212.0,0.00103797]
[1644772171807,0.00032829,42213.0,42212.0,0.00103797]
[1644772177209,0.00024977,42213.0,42212.0,0.00103797]
[1644772178011,0.28723756,42213.0,42212.0,0.00103797]
[1644772178209,0.33723756,42213.0,42212.0,0.00103797]
[1644772179009,0.05024977,42213.0,42212.0,0.00103797]
[1644772179212,0.00024977,42213.0,42212.0,0.00103797]
[1644772184211,0.00824977,42213.0,42212.0,0.00103797]
[1644772186310,0.00814214,42213.0,42212.0,0.00103797]
[1644772186509,0.03584214,42213.0,42212.0,0.00103797]
[1644772187110,0.03591969,42213.0,42212.0,0.00103797]
[1644772191911,0.32313086,42213.0,42212.0,0.00103797]
[1644772192112,0.37313086,42213.0,42212.0,0.00103797]
[1644772193512,0.08591969,42213.0,42212.0,0.00103797]
[1644772194716,0.37381588,42213.0,42212.0,0.00103797]
[1644772195366,0.61351036,42213.0,42212.0,0.00103797]
[1644772195566,0.37381588,42213.0,42212.0,0.00103797]
[1644772196065,0.08591969,42213.0,42212.0,0.00103797]
[1644772197167,0.36413174,42213.0,42212.0,0.00103797]
[1644772199406,0.08591969,42213.0,42212.0,0.00103797]
[1644772200210,0.03591969,42213.0,42212.0,0.00103797]
[1644772202313,0.08591969,42213.0,42212.0,0.00103797]
[1644772202513,0.13591969,42213.0,42212.0,0.00103797]
[1644772202770,0.12591969,42213.0,42212.0,0.00103797]
[1644772202972,0.09821969,42213.0,42212.0,0.00103797]
[1644772203569,0.07850354,42213.0,42212.0,0.00103797]
[1644772203769,0.05821969,42213.0,42212.0,0.00103797]
[1644772205273,0.10821969,42213.0,42212.0,0.00103797]
[1644772205471,0.00821969,42213.0,42212.0,0.00103797]
[1644772206620,8.14138436,42216.0,42214.0,0.06812028]
[1644772206822,8.14138436,42216.0,42215.0,0.332674]
[1644772207018,8.14138436,42216.0,42215.0,0.391904]
[1644772207218,8.14138436,42216.0,42215.0,0.332674]
[1644772207621,8.14138436,42216.0,42215.0,0.52576272]
[1644772208819,8.14138436,42216.0,42215.0,0.88759705]
[1644772209219,8.14138436,42216.0,42215.0,0.93489705]
[1644772209819,8.14138436,42216.0,42215.0,2.28489705]
[1644772210019,8.14138436,42216.0,42215.0,1.03489705]
[1644772210961,8.14138436,42216.0,42215.0,0.93489705]
[1644772211763,8.14163875,42216.0,42215.0,2.33503087]
[1644772212163,8.14163875,42216.0,42215.0,2.57503087]
[1644772212665,8.14163875,42216.0,42215.0,2.52503087]
[1644772213910,8.14163875,42216.0,42215.0,2.64348087]
[1644772214116,8.14163875,42216.0,42215.0,2.55844871]
[1644772214312,8.14163875,42216.0,42215.0,2.33999871]
[1644772214713,8.14163875,42216.0,42215.0,2.38999871]
[1644772214914,8.14163875,42216.0,42215.0,2.48999871]
[1644772215115,8.14163875,42216.0,42215.0,2.33999871]
[1644772215314,8.14163875,42216.0,42215.0,2.4047905]
[1644772215714,8.14163875,42216.0,42215.0,2.5047905]
[1644772216915,8.14163875,42216.0,42215.0,2.50465668]
[1644772217117,8.14163875,42216.0,42215.0,2.40465668]
[1644772218767,8.14163875,42216.0,42215.0,2.50465668]
[1644772219167,8.14163875,42216.0,42215.0,2.31156796]
[1644772219469,8.13663875,42216.0,42215.0,2.31156796]
[1644772219772,8.13663875,42216.0,42215.0,2.21156796]
[1644772220171,8.13663875,42216.0,42215.0,2.41156796]
[1644772220570,8.13663875,42216.0,42215.0,2.46025812]
[1644772220972,5.67677973,42216.0,42215.0,2.67599753]
[1644772221175,5.00470109,42216.0,42215.0,2.67599753]
[1644772221413,3.85285363,42216.0,42215.0,2.67599753]
[1644772221814,3.85285363,42216.0,42215.0,2.67613135]
[1644772223615,2.8964206,42216.0,42215.0,2.67613135]
[1644772223816,2.8964206,42216.0,42215.0,2.69979135]
[1644772224015,0.83923882,42216.0,42215.0,3.19305564]
[1644772224215,0.69138158,42216.0,42215.0,2.72706178]
[1644772224614,0.69138158,42216.0,42215.0,3.51972607]
[1644772225174,0.00037806,42220.0,42218.0,1.25]
[1644772225466,0.00037806,42220.0,42219.0,2.05496261]
[1644772225665,0.00023362,42232.0,42219.0,2.05496261]
[1644772225866,0.00023362,42235.0,42232.0,0.26397361]
[1644772226068,0.1165,42239.0,42232.0,0.26397361]
[1644772226069,0.00023362,42238.0,42232.0,0.26397361]
[1644772226268,0.05944762,42239.0,42232.0,0.26397361]
[1644772226467,0.00023362,42238.0,42233.0,0.332674]
[1644772226667,0.00023362,42239.0,42232.0,0.26397361]
[1644772226868,0.00023362,42240.0,42232.0,0.26397361]
[1644772227068,0.20149899,42241.0,42232.0,0.26397361]
[1644772227267,0.05959297,42238.0,42232.0,0.26397361]
[1644772227468,0.05959297,42238.0,42229.0,0.36377221]
[1644772227671,0.05959297,42238.0,42229.0,0.26377221]
[1644772227867,0.05959297,42238.0,42229.0,0.36624897]
[1644772228068,0.059215,42238.0,42229.0,0.36624897]
[1644772228471,0.00037798,42236.0,42229.0,0.36624897]
[1644772228771,0.059217,42235.0,42230.0,0.332674]
[1644772229213,0.05945062,42235.0,42230.0,0.332674]
[1644772229614,0.0598286,42235.0,42230.0,0.332674]
[1644772229818,0.39220748,42235.0,42228.0,0.0473]
[1644772230018,0.39220748,42235.0,42222.0,0.059221]
[1644772230019,0.21661645,42226.0,42220.0,0.08491658]
[1644772230221,0.059235,42225.0,42215.0,0.00013382]
[1644772230613,0.21431979,42217.0,42215.0,0.00013382]
[1644772231416,0.21431979,42217.0,42216.0,0.332674]
[1644772232014,0.21431979,42217.0,42215.0,0.33280782]
[1644772232215,0.21431979,42217.0,42215.0,0.00013382]
[1644772232417,0.21431979,42217.0,42214.0,0.00016343]
[1644772233066,0.0473,42216.0,42214.0,0.00016343]
[1644772233266,0.2916278,42215.0,42214.0,0.00016343]
[1644772233466,0.3389278,42215.0,42214.0,0.00016343]
[1644772234468,0.0473,42215.0,42214.0,0.00016343]
[1644772235470,0.12866453,42215.0,42214.0,0.00016343]
[1644772235668,0.44022335,42215.0,42214.0,0.00016343]
[1644772235869,1.0,42214.0,42202.0,0.0032]
[1644772236069,0.118526,42212.0,42202.0,0.0032]
[1644772236266,0.05,42210.0,42202.0,0.0032]
[1644772236517,0.29758434,42209.0,42202.0,0.0032]
[1644772236718,0.078856,42206.0,42202.0,0.0032]
[1644772236919,0.58387371,42209.0,42206.0,0.157712]
[1644772237226,0.29758434,42209.0,42206.0,0.157712]
[1644772240570,0.29758434,42209.0,42206.0,0.142712]
[1644772241768,0.25028434,42209.0,42206.0,0.142712]
[1644772241969,0.0002602,42208.0,42207.0,0.00025353]
[1644772246915,0.0002602,42208.0,42206.0,0.142712]
[1644772247215,0.059262,42207.0,42206.0,0.142712]
[1644772248564,0.0595202,42208.0,42206.0,0.142712]
[1644772250869,0.0595202,42208.0,42206.0,0.14285179]
[1644772251067,0.08631588,42207.0,42206.0,0.14285179]
[1644772251267,0.0595202,42208.0,42206.0,0.14285179]
[1644772251915,0.00026004,42207.0,42206.0,0.14285179]
[1644772252716,0.05952104,42207.0,42206.0,0.14285179]
[1644772256881,0.13958654,42207.0,42206.0,0.14285179]
[1644772257885,0.05952104,42207.0,42206.0,0.14285179]
[1644772259127,0.14922144,42207.0,42206.0,0.14285179]
[1644772262666,0.05952104,42207.0,42206.0,0.14285179]
[1644772262869,0.00026004,42207.0,42206.0,0.47552579]
[1644772263468,0.00026004,42207.0,42206.0,0.52282579]
[1644772263872,0.00026004,42207.0,42206.0,0.59577242]
[1644772264771,0.00026004,42207.0,42206.0,2.29577242]
[1644772264972,0.00026004,42207.0,42206.0,2.04577242]
[1644772265172,0.00037648,42213.0,42207.0,0.00052008]
[1644772265373,0.00037648,42213.0,42210.0,0.332674]
[1644772265571,0.00037648,42213.0,42211.0,0.36740284]
[1644772265771,0.00023362,42219.0,42212.0,0.88235949]
[1644772265972,0.059237,42223.0,42212.0,0.88235949]
[1644772265973,0.00023362,42222.0,42212.0,0.88235949]
[1644772266173,0.00037649,42214.0,42212.0,1.98860992]
[1644772266420,0.00037649,42214.0,42213.0,0.91727315]
[1644772266819,0.21768894,42224.0,42217.0,0.00075298]
[1644772266820,0.00023362,42222.0,42217.0,0.00075298]
[1644772267028,0.00023362,42222.0,42220.0,0.08902469]
[1644772267221,0.00023362,42226.0,42220.0,0.08902469]
[1644772267421,0.118473,42227.0,42221.0,0.59964378]
[1644772267422,0.16012499,42227.0,42221.0,0.59964378]
[1644772267621,0.3899,42228.0,42221.0,0.59964378]
[1644772267622,0.00023362,42226.0,42221.0,0.332674]
[1644772267820,0.00023362,42227.0,42221.0,0.379974]
[1644772268020,0.3899,42228.0,42227.0,0.08428722]
[1644772268220,0.15989137,42233.0,42222.0,0.22246168]
[1644772268421,0.015,42234.0,42222.0,0.48857801]
[1644772268422,0.00023387,42230.0,42222.0,0.48857801]
[1644772268620,0.00023387,42233.0,42223.0,0.332674]
[1644772268820,0.00023387,42233.0,42222.0,0.22246168]
[1644772269024,0.00023387,42233.0,42222.0,0.49047392]
[1644772269220,0.01523387,42234.0,42223.0,0.332674]
[1644772269422,0.059223,42233.0,42222.0,0.49047392]
[1644772269624,0.0003764,42230.0,42222.0,0.49047392]
[1644772269822,0.0003764,42230.0,42223.0,0.332674]
[1644772270473,0.0003764,42230.0,42224.0,0.06362988]
[1644772270671,0.11868587,42231.0,42225.0,0.332674]
[1644772270869,0.11868587,42231.0,42224.0,0.06362988]
[1644772270870,0.00014425,42229.0,42224.0,0.06362988]
[1644772271072,0.00014425,42229.0,42225.0,0.332674]
[1644772271269,0.00014425,42229.0,42222.0,0.49047392]
[1644772271470,0.00037812,42229.0,42223.0,0.332674]
[1644772271672,0.00023387,42232.0,42223.0,0.332674]
[1644772271870,0.059226,42231.0,42222.0,0.49047392]
[1644772272070,0.00014425,42228.0,42223.0,0.33281339]
[1644772272872,0.00023387,42231.0,42224.0,0.11843]
[1644772273073,0.00023817,42232.0,42226.0,0.332674]
[1644772273277,0.00014425,42228.0,42227.0,1.25]
[1644772273475,0.00014425,42228.0,42227.0,0.479974]
[1644772273772,0.00014425,42228.0,42227.0,0.78524908]
[1644772274222,0.00023387,42229.0,42228.0,0.332674]
[1644772274517,0.00061044,42230.0,42229.0,1.45857784]
[1644772274717,0.00037657,42230.0,42229.0,1.83855184]
[1644772275320,0.00023387,42231.0,42229.0,2.08418269]
[1644772275517,0.00023817,42232.0,42230.0,1.882674]
[1644772275718,0.00061473,42232.0,42231.0,1.6473]
[1644772275916,0.00061473,42232.0,42231.0,2.21318486]
[1644772276120,0.00061473,42232.0,42231.0,1.91318486]
[1644772276615,0.00023817,42232.0,42231.0,1.91318486]
[1644772276820,0.00023817,42232.0,42231.0,1.97238486]
[1644772277517,0.00023385,42233.0,42232.0,1.582674]
[1644772277770,0.00023751,42234.0,42232.0,0.43918]
[1644772277969,0.00023751,42234.0,42233.0,0.60097383]
[1644772278171,0.00061406,42234.0,42233.0,0.379974]
[1644772279070,0.00023751,42234.0,42233.0,0.379974]
[1644772280470,0.00023751,42234.0,42233.0,1.629974]
[1644772280670,0.00023751,42234.0,42233.0,1.729974]
[1644772280975,0.00023751,42234.0,42233.0,0.479974]
[1644772281172,0.00023751,42234.0,42233.0,0.379974]
[1644772281615,0.00023751,42234.0,42233.0,0.3802556]
[1644772282021,0.00023751,42234.0,42233.0,0.65380366]
[1644772282217,0.00023751,42234.0,42233.0,2.00380366]
[1644772282816,0.00023751,42234.0,42233.0,1.7302556]
[1644772284317,0.00023751,42234.0,42233.0,0.4802556]
[1644772285365,0.00023751,42234.0,42233.0,0.3802556]
[1644772285566,0.00023751,42234.0,42233.0,0.3329556]
[1644772286668,0.00023385,42235.0,42233.0,0.3329556]
[1644772286968,0.00061504,42236.0,42234.0,0.4032759]
[1644772287169,0.00023385,42235.0,42234.0,0.4032759]
[1644772287368,0.0002385,42236.0,42234.0,0.4032759]
[1644772287968,0.00047235,42236.0,42234.0,0.4032759]
[1644772288169,0.0002385,42236.0,42234.0,0.4032759]
[1644772288370,0.00047235,42236.0,42234.0,0.4032759]
[1644772288572,0.0002385,42236.0,42234.0,0.332674]
[1644772288771,0.00047235,42236.0,42235.0,0.332674]
[1644772289014,0.0002385,42236.0,42235.0,0.332674]
[1644772289414,0.0002385,42236.0,42233.0,0.0002816]
[1644772289615,0.00047235,42236.0,42235.0,0.332674]
[1644772289824,0.0002385,42236.0,42235.0,0.332674]
[1644772290218,0.0002385,42236.0,42233.0,0.0002816]
[1644772290515,0.0002385,42236.0,42235.0,0.332674]
[1644772290516,0.00047235,42236.0,42235.0,0.332674]
[1644772290716,0.0002385,42236.0,42235.0,0.332674]
[1644772291115,0.0002385,42236.0,42234.0,0.332674]
[1644772291318,0.0002385,42236.0,42234.0,0.33257061]
[1644772291919,0.0002385,42236.0,42235.0,0.33281335]
[1644772292968,0.0002385,42236.0,42235.0,0.00013935]
[1644772293371,0.0002385,42236.0,42235.0,9.35e-06]